Supplier Name,Service Area Category,Transaction date,Unique Invoice Reference,Expenditure Description,Posted Amount
Express Recruitment Ltd,Operational Responses,20/12/2016,9069420,Admin Agency Staff,490
Express Recruitment Ltd,Operational Responses,20/12/2016,9069420,Admin Agency Staff,336
Express Recruitment Ltd,Operational Responses,28/12/2016,9069421,Admin Agency Staff,476
Express Recruitment Ltd,Operational Responses,28/12/2016,9069421,Admin Agency Staff,378
Express Recruitment Ltd,Operational Responses,03/01/2017,9069449,Admin Agency Staff,210
Express Recruitment Ltd,Management & Support Services,13/12/2016,9069497,Admin Agency Staff,294
Express Recruitment Ltd,Operational Responses,13/12/2016,9069497,Admin Agency Staff,465.5
Hays Specialist Recruitment Limited,Management & Support Services,06/01/2017,9069503,Admin Agency Staff,481.95
Michael Page International Recruitment Limited,Management & Support Services,10/01/2017,9069580,Admin Agency Staff,627.3
Express Recruitment Ltd,Management & Support Services,10/01/2017,9069581,Admin Agency Staff,84
Express Recruitment Ltd,Management & Support Services,10/01/2017,9069581,Admin Agency Staff,399
Express Recruitment Ltd,Operational Responses,10/01/2017,9069581,Admin Agency Staff,441
DK Resourcing Ltd,Management & Support Services,24/12/2016,9069682,Admin Agency Staff,540
DK Resourcing Ltd,Management & Support Services,07/01/2017,9069683,Admin Agency Staff,432
DK Resourcing Ltd,Management & Support Services,14/01/2017,9069717,Admin Agency Staff,540
Michael Page International Recruitment Limited,Management & Support Services,19/01/2017,9069775,Admin Agency Staff,773.67
Michael Page International Recruitment Limited,Management & Support Services,18/01/2017,9069776,Admin Agency Staff,512.3
Hays Specialist Recruitment Limited,Management & Support Services,11/01/2017,9069777,Admin Agency Staff,"1,104.13"
Hays Specialist Recruitment Limited,Management & Support Services,18/01/2017,9069779,Admin Agency Staff,"1,238.90"
Express Recruitment Ltd,Management & Support Services,17/01/2017,9069781,Admin Agency Staff,504
Express Recruitment Ltd,Operational Responses,17/01/2017,9069781,Admin Agency Staff,430.5
DK Resourcing Ltd,Management & Support Services,21/01/2017,9069950,Admin Agency Staff,324
DK Resourcing Ltd,Management & Support Services,21/01/2017,9069950,Admin Agency Staff,634.5
Express Recruitment Ltd,Management & Support Services,24/01/2017,9069955,Admin Agency Staff,518
Express Recruitment Ltd,Operational Responses,24/01/2017,9069955,Admin Agency Staff,521.5
Hays Specialist Recruitment Limited,Management & Support Services,26/01/2017,9069993,Admin Agency Staff,"1,232.40"
NCC Pension Fund,Management & Support Services,31/12/2016,9069517,Admin Superannuation,"14,416.00"
Prochoice Recruitment (UK) Limited,Management & Support Services,21/12/2016,9069414,Agency Cooks Pay,289.94
Prochoice Recruitment (UK) Limited,Management & Support Services,14/12/2016,9069417,Agency Cooks Pay,274.68
Prochoice Recruitment (UK) Limited,Management & Support Services,21/12/2016,9069418,Agency Cooks Pay,211.92
Prochoice Recruitment (UK) Limited,Management & Support Services,29/12/2016,9069441,Agency Cooks Pay,211.92
Prochoice Recruitment (UK) Limited,Management & Support Services,11/01/2017,9069599,Agency Cooks Pay,211.92
Prochoice Recruitment (UK) Limited,Management & Support Services,25/01/2017,9069999,Agency Cooks Pay,423.84
Drivercheck Ltd,Management & Support Services,23/12/2016,9069451,Training,228
Argon Electronics (UK) Ltd,Management & Support Services,28/11/2016,9069458,Training,326.16
Fire Service College Ltd,Management & Support Services,04/01/2017,9069468,Training,750
Fire Service College Ltd,Management & Support Services,04/01/2017,9069468,Training,"3,050.00"
Bsi,Management & Support Services,29/01/2017,9069470,Training,470
The Chartered Institute of Procurement and Supply,Management & Support Services,01/01/2017,9069485,Training,"2,450.00"
Dods Parlimentary Communications Ltd,Management & Support Services,17/10/2016,9069518,Training,126.44
New Technology CADCAM Limited,Management & Support Services,23/11/2016,9069547,Training,"1,500.00"
University Of Wolverhampton,Management & Support Services,17/11/2016,9069550,Training,"1,950.00"
Citrus Lounge Limited,Management & Support Services,13/01/2017,9069574,Training,475
Cipfa Business Ltd,Management & Support Services,11/11/2016,9069602,Training,310
The Outreach Organisation Limited,Management & Support Services,05/01/2017,9069616,Training,740
The Outreach Organisation Limited,Management & Support Services,09/01/2017,9069617,Training,"1,105.00"
Open University,Management & Support Services,17/01/2017,9069710,Training,"4,130.00"
Red Apple Coaching,Management & Support Services,04/01/2017,9069733,Training,643.7
Red Apple Coaching,Management & Support Services,04/01/2017,9069734,Training,669.7
Red Apple Coaching,Management & Support Services,04/01/2017,9069735,Training,647.6
Community Lincs,Management & Support Services,11/01/2017,9069838,Training,500
Rescue 3 Europe Limited,Management & Support Services,24/01/2017,9069892,Training,359
RSGB Limited,Management & Support Services,25/10/2016,9069986,Training,"1,500.00"
Focus on Training,Management & Support Services,27/01/2017,9069996,Training,295
New Technology CADCAM Limited,Management & Support Services,31/12/2016,9069600,Training,-225
C F S Messing Account West Bridgford,Operational Responses,10/08/2016,9069719,Spoilt Meal Reimbursement,82.5
C F S Messing Account Stockhill,Operational Responses,07/01/2017,9069839,Spoilt Meal Reimbursement,265
REDACTED PERSONAL DATA,Operational Responses,01/01/2017,9069409,Relocation/Removal/Legal Expenses,300
Actorshop Limited,Management & Support Services,28/11/2016,9069872,Recruitment Advertising,"2,558.70"
NCC Sundry Debtors,Management & Support Services,18/01/2017,9069873,Recruitment Advertising,381.88
NCC Pension Fund,Management & Support Services,22/12/2016,9069516,Gratuities,85.05
NCC Pension Fund,Management & Support Services,22/12/2016,9069516,Annual Pensions - Non Uniforms,"5,391.57"
Amptron Electrical Services,Operational Responses,21/12/2016,9069738,Buildings Repairs and Maintenance - Reactive,214.2
Amptron Electrical Services,Operational Responses,30/12/2016,9069819,Buildings Repairs and Maintenance - Reactive,403.08
Amptron Electrical Services,Operational Responses,12/12/2016,9069822,Buildings Repairs and Maintenance - Reactive,209
Amptron Electrical Services,Management & Support Services,19/12/2016,9069894,Buildings Repairs and Maintenance - Reactive,564.29
Amptron Electrical Services,Operational Responses,30/12/2016,9069895,Buildings Repairs and Maintenance - Reactive,585.12
Amptron Electrical Services,Operational Responses,05/01/2017,9069905,Buildings Repairs and Maintenance - Reactive,262.06
Amptron Electrical Services,Operational Responses,08/12/2016,9069906,Buildings Repairs and Maintenance - Reactive,254.19
Amptron Electrical Services,Operational Responses,09/12/2016,9069907,Buildings Repairs and Maintenance - Reactive,209
Amptron Electrical Services,Operational Responses,01/12/2016,9069910,Buildings Repairs and Maintenance - Reactive,324.28
Amptron Electrical Services,Operational Responses,14/12/2016,9069912,Buildings Repairs and Maintenance - Reactive,277.75
Amptron Electrical Services,Operational Responses,15/12/2016,9069921,Buildings Repairs and Maintenance - Reactive,507.78
Amptron Electrical Services,Management & Support Services,01/12/2016,9069935,Buildings Repairs and Maintenance - Reactive,396
Amptron Electrical Services,Operational Responses,31/12/2016,9069937,Buildings Repairs and Maintenance - Reactive,419.64
Amptron Electrical Services,Operational Responses,24/12/2016,9069938,Buildings Repairs and Maintenance - Reactive,689.7
Amptron Electrical Services,Operational Responses,28/12/2016,9069948,Buildings Repairs and Maintenance - Reactive,776.8
Amptron Electrical Services,Management & Support Services,07/12/2016,9069964,Buildings Repairs and Maintenance - Reactive,368.25
Amptron Electrical Services,Operational Responses,05/01/2017,9069551,Building Maintenance - Planned,216.68
Amptron Electrical Services,Operational Responses,12/01/2017,9069565,Building Maintenance - Planned,345.04
Amptron Electrical Services,Operational Responses,22/12/2016,9069739,Building Maintenance - Planned,821.9
Amptron Electrical Services,Operational Responses,22/12/2016,9069742,Building Maintenance - Planned,297
Amptron Electrical Services,Operational Responses,06/12/2016,9069744,Building Maintenance - Planned,"2,726.90"
Amptron Electrical Services,Operational Responses,12/12/2016,9069745,Building Maintenance - Planned,937.2
Amptron Electrical Services,Operational Responses,30/12/2016,9069747,Building Maintenance - Planned,81.9
Amptron Electrical Services,Operational Responses,30/12/2016,9069747,Building Maintenance - Planned,120.17
Amptron Electrical Services,Operational Responses,30/12/2016,9069747,Building Maintenance - Planned,280.69
Amptron Electrical Services,Operational Responses,15/12/2016,9069753,Building Maintenance - Planned,250
Amptron Electrical Services,Operational Responses,04/01/2017,9069755,Building Maintenance - Planned,250
Amptron Electrical Services,Operational Responses,03/01/2017,9069756,Building Maintenance - Planned,250
Amptron Electrical Services,Operational Responses,03/01/2017,9069757,Building Maintenance - Planned,311.38
Amptron Electrical Services,Management & Support Services,30/12/2016,9069762,Building Maintenance - Planned,"25,190.56"
Amptron Electrical Services,Management & Support Services,18/01/2017,9069770,Building Maintenance - Planned,"2,750.44"
GES (Leicester) Limited,Management & Support Services,23/01/2017,9069882,Building Maintenance - Planned,"1,190.00"
EDF Energy,Management & Support Services,03/01/2017,9069555,Electricity,"2,294.29"
EDF Energy,Operational Responses,03/01/2017,9069577,Electricity,"1,738.52"
EDF Energy,Operational Responses,03/01/2017,9069578,Electricity,"3,606.07"
EDF Energy,Operational Responses,03/01/2017,9069579,Electricity,"1,283.77"
British Gas Business,Operational Responses,09/01/2017,9069857,Electricity,165.85
British Gas Business,Operational Responses,09/01/2017,9069857,Electricity,838.81
British Gas Business,Operational Responses,09/01/2017,9069857,Electricity,511.06
British Gas Business,Operational Responses,09/01/2017,9069857,Electricity,197.3
British Gas Business,Operational Responses,09/01/2017,9069857,Electricity,922.21
British Gas Business,Operational Responses,09/01/2017,9069857,Electricity,245.16
British Gas Business,Operational Responses,09/01/2017,9069857,Electricity,151.42
British Gas Business,Operational Responses,09/01/2017,9069857,Electricity,486.97
British Gas Business,Operational Responses,09/01/2017,9069857,Electricity,168.19
British Gas Business,Operational Responses,09/01/2017,9069857,Electricity,"1,068.77"
British Gas Business,Operational Responses,09/01/2017,9069857,Electricity,204.92
British Gas Business,Operational Responses,09/01/2017,9069857,Electricity,189.56
British Gas Business,Operational Responses,09/01/2017,9069857,Electricity,"1,091.73"
British Gas Business,Operational Responses,09/01/2017,9069857,Electricity,154.47
British Gas Business,Operational Responses,09/01/2017,9069857,Electricity,834.19
British Gas Business,Operational Responses,09/01/2017,9069857,Electricity,719.32
British Gas Business,Operational Responses,09/01/2017,9069857,Electricity,254.38
British Gas Business,Operational Responses,09/01/2017,9069857,Electricity,160.98
British Gas Business,Operational Responses,09/01/2017,9069857,Electricity,824.89
British Gas Business,Operational Responses,09/01/2017,9069857,Electricity,169.76
British Gas Business,Management & Support Services,09/01/2017,9069857,Electricity,71.91
British Gas Business,Management & Support Services,09/01/2017,9069857,Electricity,"3,372.47"
British Gas Business,Prevention & Education,09/01/2017,9069857,Electricity,313.88
British Gas Business,Operational Responses,09/01/2017,9069857,Electricity,155.32
EDF Energy,Operational Responses,23/01/2017,9069890,Electricity,839.64
EDF Energy,Operational Responses,23/01/2017,9069891,Electricity,899.81
Corona Energy,Operational Responses,10/01/2017,9069619,Gas,507.86
Corona Energy,Operational Responses,10/01/2017,9069620,Gas,247.62
Corona Energy,Operational Responses,10/01/2017,9069622,Gas,844.85
Corona Energy,Operational Responses,10/01/2017,9069624,Gas,"1,052.54"
Corona Energy,Operational Responses,10/01/2017,9069625,Gas,464.93
Corona Energy,Operational Responses,10/01/2017,9069626,Gas,610.67
Corona Energy,Operational Responses,10/01/2017,9069671,Gas,820.19
Corona Energy,Management & Support Services,10/01/2017,9069672,Gas,"1,763.79"
Corona Energy,Operational Responses,10/01/2017,9069673,Gas,"1,237.51"
Corona Energy,Operational Responses,10/01/2017,9069675,Gas,344.73
Corona Energy,Operational Responses,10/01/2017,9069678,Gas,"1,015.17"
Corona Energy,Operational Responses,10/01/2017,9069679,Gas,411.45
Corona Energy,Management & Support Services,10/01/2017,9069823,Gas,459.51
Corona Energy,Operational Responses,10/01/2017,9069825,Gas,241.75
Corona Energy,Operational Responses,10/01/2017,9069826,Gas,211.37
Corona Energy,Operational Responses,10/01/2017,9069828,Gas,391.01
Corona Energy,Operational Responses,10/01/2017,9069829,Gas,688.07
Corona Energy,Operational Responses,10/01/2017,9069832,Gas,598.88
Severn Trent Water Limited (Payments Centre),Operational Responses,04/01/2017,9069575,Water Rates,78.02
Severn Trent Water Limited (Payments Centre),Operational Responses,05/01/2017,9069821,Water Rates,701.41
Severn Trent Water Limited (Payments Centre),Operational Responses,04/01/2017,9069575,Sewerage and Environmental,42.87
Severn Trent Water Limited (Payments Centre),Operational Responses,04/01/2017,9069575,Sewerage and Environmental,311.76
Severn Trent Water Limited (Payments Centre),Operational Responses,05/01/2017,9069821,Sewerage and Environmental,420.35
Severn Trent Water Limited (Payments Centre),Operational Responses,05/01/2017,9069821,Sewerage and Environmental,664.24
Srcl Ltd,Operational Responses,31/12/2016,9069540,Refuse / Trade Waste Collection,31.55
Srcl Ltd,Operational Responses,31/12/2016,9069540,Refuse / Trade Waste Collection,42.55
Srcl Ltd,Operational Responses,31/12/2016,9069540,Refuse / Trade Waste Collection,31.55
Srcl Ltd,Operational Responses,31/12/2016,9069540,Refuse / Trade Waste Collection,85.1
Srcl Ltd,Operational Responses,31/12/2016,9069540,Refuse / Trade Waste Collection,31.55
Srcl Ltd,Operational Responses,31/12/2016,9069540,Refuse / Trade Waste Collection,42.55
Srcl Ltd,Management & Support Services,31/12/2016,9069540,Refuse / Trade Waste Collection,74.1
Wastecycle Ltd,Management & Support Services,24/11/2016,9069664,Refuse / Trade Waste Collection,390.91
Wastecycle Ltd,Management & Support Services,24/11/2016,9069665,Refuse / Trade Waste Collection,485.68
Wastecycle Ltd,Management & Support Services,24/11/2016,9069666,Refuse / Trade Waste Collection,"1,077.96"
Wastecycle Ltd,Management & Support Services,25/06/2014,9069692,Refuse / Trade Waste Collection,360
Wastecycle Ltd,Management & Support Services,25/06/2014,9069692,Refuse / Trade Waste Collection,705.55
Irongate Group Ltd,Operational Responses,23/12/2016,9069482,Cleaning Materials,179.12
Irongate Group Ltd,Operational Responses,30/11/2016,9069634,Cleaning Materials,193.2
Irongate Group Ltd,Operational Responses,31/10/2016,9069694,Cleaning Materials,7.8
Irongate Group Ltd,Operational Responses,31/10/2016,9069694,Cleaning Materials,32.67
Irongate Group Ltd,Operational Responses,31/10/2016,9069694,Cleaning Materials,76.3
Irongate Group Ltd,Operational Responses,31/10/2016,9069694,Cleaning Materials,430.74
Irongate Group Ltd,Operational Responses,17/01/2017,9069991,Cleaning Materials,137.99
NCC Sundry Debtors,Operational Responses,07/12/2016,9069444,Contract Cleaning,90
NCC Sundry Debtors,Operational Responses,07/12/2016,9069444,Contract Cleaning,90
NCC Sundry Debtors,Operational Responses,07/12/2016,9069444,Contract Cleaning,109.3
NCC Sundry Debtors,Operational Responses,07/12/2016,9069444,Contract Cleaning,180
NCC Sundry Debtors,Operational Responses,07/12/2016,9069446,Contract Cleaning,324.73
NCC Sundry Debtors,Operational Responses,07/12/2016,9069446,Contract Cleaning,162.36
NCC Sundry Debtors,Operational Responses,07/12/2016,9069446,Contract Cleaning,162.36
NCC Sundry Debtors,Operational Responses,07/12/2016,9069446,Contract Cleaning,216.49
NCC Sundry Debtors,Operational Responses,07/12/2016,9069446,Contract Cleaning,487.09
NCC Sundry Debtors,Operational Responses,07/12/2016,9069446,Contract Cleaning,162.36
NCC Sundry Debtors,Operational Responses,07/12/2016,9069446,Contract Cleaning,216.49
NCC Sundry Debtors,Operational Responses,07/12/2016,9069446,Contract Cleaning,162.36
NCC Sundry Debtors,Operational Responses,07/12/2016,9069446,Contract Cleaning,162.36
NCC Sundry Debtors,Operational Responses,07/12/2016,9069446,Contract Cleaning,216.49
NCC Sundry Debtors,Operational Responses,07/12/2016,9069446,Contract Cleaning,162.36
NCC Sundry Debtors,Operational Responses,07/12/2016,9069446,Contract Cleaning,162.36
NCC Sundry Debtors,Operational Responses,07/12/2016,9069446,Contract Cleaning,162.36
NCC Sundry Debtors,Operational Responses,07/12/2016,9069446,Contract Cleaning,216.49
NCC Sundry Debtors,Operational Responses,07/12/2016,9069446,Contract Cleaning,162.36
NCC Sundry Debtors,Operational Responses,07/12/2016,9069446,Contract Cleaning,216.49
NCC Sundry Debtors,Operational Responses,07/12/2016,9069446,Contract Cleaning,324.73
NCC Sundry Debtors,Operational Responses,07/12/2016,9069446,Contract Cleaning,162.36
NCC Sundry Debtors,Operational Responses,07/12/2016,9069446,Contract Cleaning,162.36
NCC Sundry Debtors,Operational Responses,07/12/2016,9069446,Contract Cleaning,162.36
NCC Sundry Debtors,Operational Responses,07/12/2016,9069446,Contract Cleaning,162.36
NCC Sundry Debtors,Operational Responses,07/12/2016,9069446,Contract Cleaning,324.73
NCC Sundry Debtors,Operational Responses,07/12/2016,9069446,Contract Cleaning,162.36
NCC Sundry Debtors,Operational Responses,07/12/2016,9069446,Contract Cleaning,270.61
NCC Sundry Debtors,Management & Support Services,07/12/2016,9069446,Contract Cleaning,811.82
NCC Sundry Debtors,Operational Responses,07/12/2016,9069447,Contract Cleaning,54.12
NCC Sundry Debtors,Operational Responses,07/12/2016,9069447,Contract Cleaning,54.12
NCC Sundry Debtors,Operational Responses,07/12/2016,9069447,Contract Cleaning,54.12
NCC Sundry Debtors,Operational Responses,07/12/2016,9069447,Contract Cleaning,54.12
NCC Sundry Debtors,Operational Responses,07/12/2016,9069447,Contract Cleaning,108.24
NCC Sundry Debtors,Operational Responses,07/12/2016,9069447,Contract Cleaning,54.12
NCC Sundry Debtors,Operational Responses,07/12/2016,9069447,Contract Cleaning,54.12
NCC Sundry Debtors,Operational Responses,07/12/2016,9069447,Contract Cleaning,54.12
NCC Sundry Debtors,Operational Responses,07/12/2016,9069447,Contract Cleaning,54.12
NCC Sundry Debtors,Operational Responses,07/12/2016,9069447,Contract Cleaning,54.12
NCC Sundry Debtors,Operational Responses,07/12/2016,9069447,Contract Cleaning,54.12
NCC Sundry Debtors,Operational Responses,07/12/2016,9069447,Contract Cleaning,54.12
NCC Sundry Debtors,Operational Responses,07/12/2016,9069447,Contract Cleaning,54.12
NCC Sundry Debtors,Operational Responses,07/12/2016,9069447,Contract Cleaning,54.12
NCC Sundry Debtors,Operational Responses,07/12/2016,9069447,Contract Cleaning,54.12
NCC Sundry Debtors,Operational Responses,07/12/2016,9069447,Contract Cleaning,54.12
NCC Sundry Debtors,Operational Responses,07/12/2016,9069447,Contract Cleaning,108.24
NCC Sundry Debtors,Operational Responses,07/12/2016,9069447,Contract Cleaning,54.12
NCC Sundry Debtors,Operational Responses,07/12/2016,9069447,Contract Cleaning,54.12
NCC Sundry Debtors,Operational Responses,07/12/2016,9069447,Contract Cleaning,54.12
NCC Sundry Debtors,Operational Responses,07/12/2016,9069447,Contract Cleaning,54.12
NCC Sundry Debtors,Operational Responses,07/12/2016,9069447,Contract Cleaning,54.12
NCC Sundry Debtors,Operational Responses,07/12/2016,9069447,Contract Cleaning,54.12
NCC Sundry Debtors,Operational Responses,07/12/2016,9069447,Contract Cleaning,54.12
NCC Sundry Debtors,Management & Support Services,07/12/2016,9069447,Contract Cleaning,54.12
NCC Sundry Debtors,Management & Support Services,07/12/2016,9069447,Contract Cleaning,54.12
NCC Sundry Debtors,Prevention & Education,07/12/2016,9069447,Contract Cleaning,54.12
NCC Sundry Debtors,Operational Responses,01/01/2017,9069969,Contract Cleaning,9.02
NCC Sundry Debtors,Operational Responses,01/01/2017,9069969,Contract Cleaning,9.02
NCC Sundry Debtors,Operational Responses,01/01/2017,9069969,Contract Cleaning,13.53
NCC Sundry Debtors,Operational Responses,01/01/2017,9069969,Contract Cleaning,9.02
NCC Sundry Debtors,Operational Responses,01/01/2017,9069969,Contract Cleaning,4.51
NCC Sundry Debtors,Operational Responses,01/01/2017,9069969,Contract Cleaning,9.02
NCC Sundry Debtors,Operational Responses,01/01/2017,9069969,Contract Cleaning,9.02
NCC Sundry Debtors,Operational Responses,01/01/2017,9069969,Contract Cleaning,9.02
NCC Sundry Debtors,Operational Responses,01/01/2017,9069969,Contract Cleaning,9.02
NCC Sundry Debtors,Operational Responses,01/01/2017,9069969,Contract Cleaning,9.02
NCC Sundry Debtors,Operational Responses,01/01/2017,9069969,Contract Cleaning,9.02
NCC Sundry Debtors,Operational Responses,01/01/2017,9069969,Contract Cleaning,9.02
NCC Sundry Debtors,Operational Responses,01/01/2017,9069969,Contract Cleaning,9.02
NCC Sundry Debtors,Operational Responses,01/01/2017,9069969,Contract Cleaning,9.02
NCC Sundry Debtors,Operational Responses,01/01/2017,9069969,Contract Cleaning,13.53
NCC Sundry Debtors,Operational Responses,01/01/2017,9069969,Contract Cleaning,9.02
NCC Sundry Debtors,Operational Responses,01/01/2017,9069969,Contract Cleaning,9.02
NCC Sundry Debtors,Operational Responses,01/01/2017,9069969,Contract Cleaning,9.02
NCC Sundry Debtors,Operational Responses,01/01/2017,9069969,Contract Cleaning,9.02
NCC Sundry Debtors,Operational Responses,01/01/2017,9069969,Contract Cleaning,9.02
NCC Sundry Debtors,Operational Responses,01/01/2017,9069969,Contract Cleaning,9.02
NCC Sundry Debtors,Operational Responses,01/01/2017,9069969,Contract Cleaning,9.02
NCC Sundry Debtors,Operational Responses,01/01/2017,9069969,Contract Cleaning,9.02
NCC Sundry Debtors,Operational Responses,01/01/2017,9069969,Contract Cleaning,9.02
NCC Sundry Debtors,Management & Support Services,01/01/2017,9069969,Contract Cleaning,9.02
NCC Sundry Debtors,Management & Support Services,01/01/2017,9069969,Contract Cleaning,26.53
Southwell Cathedral Chapter,Management & Support Services,11/01/2017,9069842,Hire of Premises,209.51
Tow-Trust Towbars,Management & Support Services,24/01/2017,9069855,Purchase of Vehicle Equipment,523.99
Tow-Trust Towbars,Management & Support Services,24/01/2017,9069855,Purchase of Vehicle Equipment,659
Tangible Solutions Limited,Management & Support Services,30/12/2016,9069476,Fleet Maintenance,"2,390.00"
Premier Hazard Ltd,Management & Support Services,17/06/2016,9069539,Fleet Maintenance,386
Keltruck Limited,Management & Support Services,21/12/2016,9069549,Fleet Maintenance,270.03
Nottingham City Council (City Treasurer),Management & Support Services,15/12/2016,9069558,Fleet Maintenance,"6,128.16"
Nottingham City Council (City Treasurer),Management & Support Services,15/12/2016,9069559,Fleet Maintenance,"3,815.43"
Keltruck Limited,Management & Support Services,09/01/2017,9069716,Fleet Maintenance,277.68
Promotional Displays & Signs Company,Management & Support Services,15/12/2016,9069798,Fleet Maintenance,409
Promotional Displays & Signs Company,Management & Support Services,15/12/2016,9069799,Fleet Maintenance,378
Promotional Displays & Signs Company,Management & Support Services,15/12/2016,9069841,Fleet Maintenance,413
TSI Flowmeters Ltd,Management & Support Services,23/12/2016,9069853,Fleet Maintenance,20
TSI Flowmeters Ltd,Management & Support Services,23/12/2016,9069853,Fleet Maintenance,480
Keltruck Limited,Management & Support Services,18/01/2017,9069865,Fleet Maintenance,"1,348.31"
Keltruck Limited,Management & Support Services,18/01/2017,9069866,Fleet Maintenance,564.96
Keltruck Limited,Management & Support Services,16/11/2016,9069870,Fleet Maintenance,"5,386.26"
Keltruck Limited,Management & Support Services,15/11/2016,9069875,Fleet Maintenance,452.99
Keltruck Limited,Management & Support Services,26/01/2017,9069876,Fleet Maintenance,319
Nottingham City Council (City Treasurer),Management & Support Services,12/01/2017,9069941,Fleet Maintenance,"7,815.26"
Keltruck Limited,Management & Support Services,15/11/2016,9069942,Fleet Maintenance,347.79
Nottingham City Council (City Treasurer),Management & Support Services,12/01/2017,9069951,Fleet Maintenance,"5,960.57"
Woodway Engineering Limited,Management & Support Services,06/12/2016,9069427,Fleet Modification,"1,133.43"
Woodway Engineering Limited,Management & Support Services,07/12/2016,9069428,Fleet Modification,"1,133.43"
Spectrum Mobile Communications Limited,Management & Support Services,30/12/2016,9069474,Fleet Modification,275
Spectrum Mobile Communications Limited,Management & Support Services,14/12/2016,9069706,Fleet Modification,"1,330.00"
Woodway Engineering Limited,Management & Support Services,11/11/2016,9069854,Fleet Modification,"1,123.43"
CERTAS,Operational Responses,13/12/2016,9069398,Fuel - Vehicle,"7,526.33"
CERTAS,Operational Responses,04/11/2016,9069643,Fuel - Vehicle,"6,255.42"
Mis Fuel Monitoring Ltd,Management & Support Services,20/01/2017,9069896,Fuel - Vehicle,879.62
ATS Euromaster,Management & Support Services,31/12/2016,9069469,Tyres,"3,920.85"
Princes Trust - Petty Cash Account,Prevention & Education,31/05/2016,9069443,Public Transport,488.4
Princes Trust - Petty Cash Account,Prevention & Education,30/06/2016,9069461,Public Transport,13
Princes Trust - Petty Cash Account,Prevention & Education,30/06/2016,9069461,Public Transport,778.8
Princes Trust - Petty Cash Account,Prevention & Education,31/07/2016,9069803,Public Transport,7
Princes Trust - Petty Cash Account,Prevention & Education,31/07/2016,9069803,Public Transport,455.4
Princes Trust - Petty Cash Account,Prevention & Education,30/09/2016,9069805,Public Transport,4.5
Princes Trust - Petty Cash Account,Prevention & Education,30/09/2016,9069805,Public Transport,429.6
Princes Trust - Petty Cash Account,Prevention & Education,30/06/2016,9069806,Public Transport,13
Princes Trust - Petty Cash Account,Prevention & Education,30/06/2016,9069806,Public Transport,778.8
Princes Trust - Petty Cash Account,Prevention & Education,31/10/2016,9069845,Public Transport,16.1
Princes Trust - Petty Cash Account,Prevention & Education,31/10/2016,9069845,Public Transport,898.75
Princes Trust - Petty Cash Account,Prevention & Education,30/11/2016,9069846,Public Transport,7.5
Princes Trust - Petty Cash Account,Prevention & Education,30/11/2016,9069846,Public Transport,809.45
Princes Trust - Petty Cash Account,Prevention & Education,31/12/2016,9069847,Public Transport,315.1
OpalTec International Limited,Management & Support Services,16/01/2017,9069807,Operational Equipment Purchase,15
OpalTec International Limited,Management & Support Services,16/01/2017,9069807,Operational Equipment Purchase,685
Civil Defence Supply Ltd,Management & Support Services,19/01/2017,9069834,Operational Equipment Purchase,710
OpalTec International Limited,Management & Support Services,13/01/2017,9069868,Operational Equipment Purchase,15
OpalTec International Limited,Management & Support Services,13/01/2017,9069868,Operational Equipment Purchase,735
Safequip Ltd,Management & Support Services,07/09/2016,9069874,Operational Equipment Purchase,60
Safequip Ltd,Management & Support Services,07/09/2016,9069874,Operational Equipment Purchase,"5,580.00"
E P Barrus Ltd,Management & Support Services,22/11/2016,9069897,Operational Equipment Purchase,"3,945.57"
Medical Gas Solutions Ltd,Management & Support Services,31/12/2016,9069637,Oxygen and Other Gases,"1,327.50"
Cfoa (Services) Ltd,Management & Support Services,06/01/2017,9069573,Computer Hardeware/ Software,"3,088.00"
Easynet (was MDNX),Management & Support Services,29/12/2016,9069453,Computer Software Maintenance Contracts,"9,075.31"
In-Tend Limited,Management & Support Services,16/01/2017,9069587,Computer Software Maintenance Contracts,"3,174.74"
Intouch Mcs Ltd,Operational Responses,31/12/2016,9069593,Computer Software Maintenance Contracts,495
Danwood Group Limited,Management & Support Services,09/12/2016,9069856,Computer Software Maintenance Contracts,"9,368.60"
Bt Global Services,Management & Support Services,14/12/2016,9069860,Computer Software Maintenance Contracts,"1,140.10"
J A Burns t/a squircle IT,Management & Support Services,30/01/2017,9069947,Computer Software Maintenance Contracts,"2,000.00"
Easynet (was MDNX),Management & Support Services,26/01/2017,9069953,Computer Software Maintenance Contracts,"9,075.31"
Easynet (was MDNX),Management & Support Services,15/12/2016,9069557,Computer Software Maintenance Contracts,-232.96
Tony Hearn Ltd,Management & Support Services,09/01/2017,9069500,Non-Contracted Services - ICT,640
Home Office,Management & Support Services,12/01/2017,9069768,FireLink Contract Charges,273.44
Home Office,Management & Support Services,12/01/2017,9069768,FireLink Contract Charges,"3,514.64"
Home Office,Management & Support Services,12/01/2017,9069768,FireLink Contract Charges,"103,958.65"
Airwave Solutions Ltd,Management & Support Services,17/01/2017,9069867,FireLink Contract Charges,910.55
Risual Limited,Management & Support Services,27/12/2016,9069455,Phones - Landline,578.49
Daisy Communications Ltd,Management & Support Services,01/01/2017,9069484,Phones - Landline,"2,002.53"
BT PLC,Management & Support Services,09/11/2016,9069707,Phones - Landline,"3,472.90"
EE,Management & Support Services,01/01/2017,9069456,Phones - Mobiles,"3,050.40"
EE,Management & Support Services,01/01/2017,9069457,Phones - Mobiles,842.5
Manx Telecom,Operational Responses,11/01/2017,9069680,Phones - Mobiles,540.56
Vodafone Corporate Limited (Berk),Operational Responses,24/01/2017,9069954,Phones - Mobiles,159.87
Vodafone Corporate Limited (Berk),Management & Support Services,24/01/2017,9069954,Phones - Mobiles,54
Vodafone Paging Ltd,Operational Responses,04/01/2017,9069572,Pagers,832.32
Waterfront Manufacturing Limited,Management & Support Services,22/12/2016,9069407,Clothing and Uniform,680
Bristol Uniforms Limited,Management & Support Services,04/01/2017,9069638,Uniform and Protectice Clothing Repairs,"1,656.86"
Kays Medical Ltd,Management & Support Services,23/01/2017,9069979,Fitness Equipment,"1,150.00"
Kays Medical Ltd,Management & Support Services,24/01/2017,9069980,Fitness Equipment,"1,199.00"
Princes Trust - Petty Cash Account,Prevention & Education,31/05/2016,9069443,Catering/Food & Beverages,59.07
Princes Trust - Petty Cash Account,Prevention & Education,30/06/2016,9069461,Catering/Food & Beverages,17.09
Carlton Catering,Management & Support Services,22/01/2017,9069792,Catering/Food & Beverages,336
Princes Trust - Petty Cash Account,Prevention & Education,30/09/2016,9069805,Catering/Food & Beverages,63.89
Princes Trust - Petty Cash Account,Prevention & Education,30/06/2016,9069806,Catering/Food & Beverages,17.09
Princes Trust - Petty Cash Account,Prevention & Education,30/11/2016,9069846,Catering/Food & Beverages,15
Irongate Group Ltd,Management & Support Services,23/12/2016,9069482,Stationery,4.49
Irongate Group Ltd,Management & Support Services,23/12/2016,9069482,Stationery,85.57
Irongate Group Ltd,Operational Responses,30/11/2016,9069634,Stationery,7.31
Irongate Group Ltd,Operational Responses,30/11/2016,9069634,Stationery,17.57
Irongate Group Ltd,Operational Responses,31/10/2016,9069694,Stationery,2.69
Irongate Group Ltd,Operational Responses,31/10/2016,9069694,Stationery,7.31
Princes Trust - Petty Cash Account,Prevention & Education,31/07/2016,9069803,Stationery,12.55
Irongate Group Ltd,Operational Responses,17/01/2017,9069991,Stationery,172.5
Royal Mail (Bacs),Management & Support Services,09/01/2017,9069718,Postage,208.33
Proflight Ltd,Management & Support Services,22/12/2016,9069465,Carriage and Packaging,29.5
Medimark Scientific Ltd,Management & Support Services,11/01/2017,9069570,Carriage and Packaging,23.36
Lemaitre Ltd,Management & Support Services,30/11/2016,9069590,Carriage and Packaging,31
Lemaitre Ltd,Management & Support Services,30/11/2016,9069591,Carriage and Packaging,31
CFM Services,Management & Support Services,09/01/2017,9069700,Carriage and Packaging,8.5
Forge Health,Management & Support Services,19/12/2016,9069478,Occupational Health Costs,"4,800.00"
Forge Health,Management & Support Services,12/01/2017,9069709,Occupational Health Costs,"1,920.00"
Kays Medical Ltd,Management & Support Services,14/11/2016,9069994,Occupational Health Costs,269.8
Faithful and Gould Limited,Management & Support Services,19/01/2017,9069883,Professional Fees - Estates Related,"3,472.68"
Faithful and Gould Limited,Management & Support Services,20/01/2017,9069884,Professional Fees - Estates Related,"3,250.00"
NorthgateArinso UK Limited,Management & Support Services,19/10/2016,9069741,Disclosure Checks,389.78
Princes Trust - Petty Cash Account,Prevention & Education,31/05/2016,9069443,Subsistence,6.69
Princes Trust - Petty Cash Account,Prevention & Education,30/06/2016,9069461,Subsistence,7.74
C F S Messing Account West Bridgford,Operational Responses,10/08/2016,9069719,Subsistence,211.25
Princes Trust - Petty Cash Account,Prevention & Education,31/07/2016,9069803,Subsistence,27.99
Princes Trust - Petty Cash Account,Prevention & Education,30/09/2016,9069805,Subsistence,5.79
Princes Trust - Petty Cash Account,Prevention & Education,30/06/2016,9069806,Subsistence,7.74
Princes Trust - Petty Cash Account,Prevention & Education,31/10/2016,9069845,Subsistence,3.3
Princes Trust - Petty Cash Account,Prevention & Education,30/11/2016,9069846,Subsistence,2
Alarm,Management & Support Services,01/01/2017,9069522,Subscriptions,944
Experian Ltd,"Statutory Inspection, Certification & Enforcement",25/11/2016,9069584,Subscriptions,"8,958.00"
Networking Women In The Fire Service,Management & Support Services,01/01/2017,9069731,Subscriptions,500
East Midlands Councils,Management & Support Services,20/07/2016,9069844,Subscriptions,505
Reed Business Information (XpertHR),Management & Support Services,15/12/2016,9069452,Reference Books and Publications,"1,374.00"
Action on Hearing Loss,Prevention & Education,21/11/2016,9069630,Smoke Alarms,7.96
Action on Hearing Loss,Prevention & Education,21/11/2016,9069630,Smoke Alarms,623.52
Ramtech Electronics Ltd,Management & Support Services,17/11/2016,9069952,Smoke Alarms,"1,280.00"
Omniplex (Group) Limited,Management & Support Services,18/11/2016,9069463,Training/ Teaching Equipment,"2,260.00"
B D Motor Spares,Operational Responses,08/01/2017,9069554,Training/ Teaching Equipment,110
B D Motor Spares,Operational Responses,08/01/2017,9069554,Training/ Teaching Equipment,110
B D Motor Spares,Operational Responses,08/01/2017,9069554,Training/ Teaching Equipment,110
B D Motor Spares,Operational Responses,08/01/2017,9069554,Training/ Teaching Equipment,110
B D Motor Spares,Operational Responses,08/01/2017,9069554,Training/ Teaching Equipment,220
B D Motor Spares,Operational Responses,08/01/2017,9069554,Training/ Teaching Equipment,110
B D Motor Spares,Operational Responses,08/01/2017,9069554,Training/ Teaching Equipment,110
Chartered Institute Of Environmental Health,Management & Support Services,09/01/2017,9069566,Training/ Teaching Equipment,645.25
Lemaitre Ltd,Management & Support Services,16/12/2016,9069589,Training/ Teaching Equipment,17
Lemaitre Ltd,Management & Support Services,16/12/2016,9069589,Training/ Teaching Equipment,"2,150.00"
Bits At Micks,Operational Responses,30/12/2016,9069782,Training/ Teaching Equipment,220
Bits At Micks,Operational Responses,30/12/2016,9069782,Training/ Teaching Equipment,220
Bits At Micks,Operational Responses,30/12/2016,9069782,Training/ Teaching Equipment,110
A W Elliott Technical Services,Management & Support Services,17/01/2017,9069851,Training/ Teaching Equipment,285
Princes Trust - Petty Cash Account,Prevention & Education,31/05/2016,9069443,Community Safety Delivery Consumables,25.31
Princes Trust - Petty Cash Account,Prevention & Education,30/06/2016,9069461,Community Safety Delivery Consumables,97.48
Princes Trust - Petty Cash Account,Prevention & Education,31/07/2016,9069803,Community Safety Delivery Consumables,43.33
Princes Trust - Petty Cash Account,Prevention & Education,30/09/2016,9069805,Community Safety Delivery Consumables,30.24
Princes Trust - Petty Cash Account,Prevention & Education,30/06/2016,9069806,Community Safety Delivery Consumables,45.45
Princes Trust - Petty Cash Account,Prevention & Education,30/06/2016,9069806,Community Safety Delivery Consumables,97.48
Princes Trust - Petty Cash Account,Prevention & Education,31/10/2016,9069845,Community Safety Delivery Consumables,55.39
Princes Trust - Petty Cash Account,Prevention & Education,30/11/2016,9069846,Community Safety Delivery Consumables,19.74
Princes Trust - Petty Cash Account,Prevention & Education,31/12/2016,9069847,Community Safety Delivery Consumables,2.25
Thomas Kneale & Co Ltd,Prevention & Education,06/01/2017,9069564,Community Safety Delivery Equipment,843
Action on Hearing Loss,Prevention & Education,21/11/2016,9069630,Community Safety Delivery Equipment,149.16
Thomas Kneale & Co Ltd,Prevention & Education,09/01/2017,9069723,Community Safety Delivery Equipment,"1,423.05"
Thomas Kneale & Co Ltd,Operational Responses,06/01/2017,9069724,Community Safety Delivery Equipment,314.5
Thomas Kneale & Co Ltd,Prevention & Education,06/01/2017,9069794,Community Safety Delivery Equipment,958.75
Action on Hearing Loss,Prevention & Education,24/01/2017,9069879,Community Safety Delivery Equipment,7.96
Action on Hearing Loss,Prevention & Education,24/01/2017,9069879,Community Safety Delivery Equipment,589.92
Ramtech Electronics Ltd,Management & Support Services,17/11/2016,9069952,Community Safety Delivery Equipment,"4,096.00"
Northern Diver (International) Ltd,Management & Support Services,26/01/2017,9069959,Stock Adjustments,15
Collins Nets Ltd,Management & Support Services,26/01/2017,9069971,Stock Adjustments,8.5
Age UK Nottingham & Nottinghamshire,Prevention & Education,19/01/2017,9069774,Contribution to Partnership Working,"5,000.00"
Freeth Cartwright Llp,Management & Support Services,30/11/2016,9069548,Legal Services,957
Freeth Cartwright Llp,Management & Support Services,31/10/2016,9069640,Legal Services,462
KPMG LLP,Management & Support Services,20/12/2016,9069598,External Audit Fees,"7,762.50"
Derbyshire Fire Authority,Operational Responses,10/01/2017,9069684,Government Grant - Revenue,"51,863.00"
Princes Trust - Petty Cash Account,Prevention & Education,31/05/2016,9069443,Miscellaneous Fees & Charges,95.16
Princes Trust - Petty Cash Account,Prevention & Education,30/06/2016,9069461,Miscellaneous Fees & Charges,45.45
Dot Promotional Clothing,Management & Support Services,07/12/2016,9069399,Control Account - GRN Not Invoiced,948.7
Collins Nets Ltd,Management & Support Services,21/12/2016,9069401,Control Account - GRN Not Invoiced,279
Sprue Safety Products Ltd,Management & Support Services,21/12/2016,9069402,Control Account - GRN Not Invoiced,"2,420.00"
Sprue Safety Products Ltd,Management & Support Services,09/12/2016,9069403,Control Account - GRN Not Invoiced,880
First Products (Sussex) Limited,Management & Support Services,23/11/2016,9069404,Control Account - GRN Not Invoiced,268
CFM Services,Management & Support Services,07/12/2016,9069405,Control Account - GRN Not Invoiced,485.7
William Sugden & sons Limited,Management & Support Services,26/10/2016,9069406,Control Account - GRN Not Invoiced,"1,247.78"
Buckhickman Inone,Management & Support Services,28/10/2016,9069464,Control Account - GRN Not Invoiced,452.41
Proflight Ltd,Management & Support Services,22/12/2016,9069465,Control Account - GRN Not Invoiced,"1,303.75"
Buckhickman Inone,Management & Support Services,06/01/2017,9069542,Control Account - GRN Not Invoiced,342.4
Medimark Scientific Ltd,Management & Support Services,11/01/2017,9069570,Control Account - GRN Not Invoiced,249.96
Lemaitre Ltd,Management & Support Services,30/11/2016,9069590,Control Account - GRN Not Invoiced,625
Lemaitre Ltd,Management & Support Services,30/11/2016,9069591,Control Account - GRN Not Invoiced,"1,250.00"
Kays Medical Ltd,Management & Support Services,04/01/2017,9069596,Control Account - GRN Not Invoiced,258.33
Halls Locksmiths Limited,Management & Support Services,09/01/2017,9069603,Control Account - GRN Not Invoiced,"2,179.50"
William Sugden & sons Limited,Management & Support Services,19/12/2016,9069690,Control Account - GRN Not Invoiced,494.79
M E Duffell Limited,Management & Support Services,10/01/2017,9069691,Control Account - GRN Not Invoiced,407.04
William Sugden & sons Limited,Management & Support Services,30/11/2016,9069698,Control Account - GRN Not Invoiced,391
CFM Services,Management & Support Services,09/01/2017,9069700,Control Account - GRN Not Invoiced,347.3
Sprue Safety Products Ltd,Management & Support Services,13/01/2017,9069712,Control Account - GRN Not Invoiced,"6,180.00"
Goliath Footwear Ltd,Management & Support Services,17/01/2017,9069764,Control Account - GRN Not Invoiced,313.5
Thomas Kneale & Co Ltd,Management & Support Services,19/01/2017,9069783,Control Account - GRN Not Invoiced,"1,145.00"
Dot Promotional Clothing,Management & Support Services,20/01/2017,9069785,Control Account - GRN Not Invoiced,393.8
Dot Promotional Clothing,Management & Support Services,20/01/2017,9069789,Control Account - GRN Not Invoiced,348
William Sugden & sons Limited,Management & Support Services,19/01/2017,9069797,Control Account - GRN Not Invoiced,230
Northern Diver (International) Ltd,Management & Support Services,26/01/2017,9069959,Control Account - GRN Not Invoiced,"1,176.00"
Collins Nets Ltd,Management & Support Services,26/01/2017,9069971,Control Account - GRN Not Invoiced,910
Halls Locksmiths Limited,Management & Support Services,24/01/2017,9069987,Control Account - GRN Not Invoiced,"2,249.10"
Physio-Control UK Sales Limited,Management & Support Services,19/01/2017,9069988,Control Account - GRN Not Invoiced,266
Sprue Safety Products Ltd,Management & Support Services,24/01/2017,9069989,Control Account - GRN Not Invoiced,"6,180.00"
Special Vehicle Preprations,Management & Support Services,16/12/2016,9069769,Vehicle Purchase,"13,741.13"
Airwave Solutions Ltd,Management & Support Services,17/01/2017,9069867,Vehicle Purchase,"1,153.29"
Gelder Ltd,Management & Support Services,11/01/2017,9069604,Building Works,"57,831.66"
Amptron Electrical Services,Management & Support Services,31/12/2016,9069943,Electrical / IT Comms /Printers Etc,"3,727.31"
Turner and Townsend Project Management,Management & Support Services,19/12/2016,9069479,Professional Fees - Architects,"8,080.81"
Ldd Group Ltd,Management & Support Services,21/12/2016,9069437,Hardware,"7,409.16"
CDW UK,Management & Support Services,13/01/2017,9069613,Hardware,"1,519.75"
CDW UK,Management & Support Services,13/01/2017,9069614,Hardware,"6,855.00"
CDW UK,Management & Support Services,13/01/2017,9069615,Hardware,"2,965.59"
R S Components Limited,Management & Support Services,11/01/2017,9069708,Hardware,482.51
CDW UK,Management & Support Services,30/01/2017,9069997,Hardware,"1,886.86"
Phoenix Software Limited,Management & Support Services,29/12/2016,9069462,Software and Licences,"3,524.68"
Cosurica Ltd,Management & Support Services,12/01/2017,9069588,Consultancy and Services,"1,200.00"
Integra Associates Limited,Management & Support Services,31/12/2016,9069702,Consultancy and Services,"1,700.00"
Civica Uk Limited,Management & Support Services,05/02/2017,9069773,Consultancy and Services,"2,523.00"
